[Event "Titled Tuesday Blitz May 30 Late 2023"]
[White "Papp, Petra"]
[Black "Brown, Raehanna"]
[WhiteFideId "739049"]
[BlackFideId "7402740"]
[WhiteElo "2259"]
[BlackElo "1655"]
[Result "0-1"]
[Round "03"]
[TimeControl "180+2"]
[Date "2023.05.31"]
[WhiteClock "0:00:22"]
[BlackClock "0:00:11"]

1. d4 {[%clk 0:03:00]}  Nf6 {[%clk 0:02:53]} 2. c4 {[%clk 0:02:49]}  g6 {[%clk 0:02:51]} 3. Nc3 {[%clk 0:02:48]}  Bg7 {[%clk 0:02:51]} 4. e4 {[%clk 0:02:48]}  d6 {[%clk 0:02:51]} 5. h3 {[%clk 0:02:49]}  O-O {[%clk 0:02:51]} 6. Be3 {[%clk 0:02:49]}  Nbd7 {[%clk 0:02:51]} 7. g4 {[%clk 0:02:48]}  c5 {[%clk 0:02:51]} 8. d5 {[%clk 0:02:46]}  a6 {[%clk 0:02:51]} 9. Nge2 {[%clk 0:02:44]}  b5 {[%clk 0:02:51]} 10. Ng3 {[%clk 0:02:42]}  bxc4 {[%clk 0:02:46]} 11. Bxc4 {[%clk 0:02:41]}  Ne5 {[%clk 0:02:38]} 12. Be2 {[%clk 0:02:40]}  Qb6 {[%clk 0:02:36]} 13. Rb1 {[%clk 0:02:37]}  a5 {[%clk 0:02:30]} 14. f4 {[%clk 0:02:37]}  Ned7 {[%clk 0:02:30]} 15. g5 {[%clk 0:02:36]}  Ne8 {[%clk 0:02:29]} 16. h4 {[%clk 0:02:36]}  Ba6 {[%clk 0:02:28]} 17. Kf2 {[%clk 0:02:32]}  Bxe2 {[%clk 0:02:23]} 18. Qxe2 {[%clk 0:02:32]}  Nc7 {[%clk 0:02:21]} 19. h5 {[%clk 0:02:30]}  Rfb8 {[%clk 0:02:18]} 20. hxg6 {[%clk 0:02:25]}  fxg6 {[%clk 0:02:19]} 21. Qg4 {[%clk 0:02:20]}  Nf8 {[%clk 0:02:12]} 22. Nce2 {[%clk 0:02:18]}  Qa6 {[%clk 0:02:01]} 23. f5 {[%clk 0:02:14]}  Rxb2 {[%clk 0:01:52]} 24. Rxb2 {[%clk 0:02:12]}  Bxb2 {[%clk 0:01:53]} 25. f6 {[%clk 0:01:46]}  exf6 {[%clk 0:01:50]} 26. gxf6 {[%clk 0:01:45]}  Bxf6 {[%clk 0:01:50]} 27. Nf5 {[%clk 0:01:40]}  Ne8 {[%clk 0:01:11]} 28. Nh6+ {[%clk 0:01:28]}  Kh8 {[%clk 0:01:06]} 29. Bg5 {[%clk 0:01:15]}  Qc8 {[%clk 0:00:54]} 30. Qf4 {[%clk 0:01:12]}  Kg7 {[%clk 0:00:49]} 31. Bxf6+ {[%clk 0:01:01]}  Nxf6 {[%clk 0:00:48]} 32. Ng3 {[%clk 0:00:51]}  Qd8 {[%clk 0:00:37]} 33. Ngf5+ {[%clk 0:00:45]}  gxf5 {[%clk 0:00:31]} 34. Nxf5+ {[%clk 0:00:45]}  Kh8 {[%clk 0:00:24]} 35. Nxd6 {[%clk 0:00:44]}  Qxd6 {[%clk 0:00:22]} 36. Qh4 {[%clk 0:00:42]}  Ng6 {[%clk 0:00:19]} 37. Qh3 {[%clk 0:00:35]}  Nxe4+ {[%clk 0:00:17]} 38. Ke3 {[%clk 0:00:35]}  Qe7 {[%clk 0:00:16]} 39. d6 {[%clk 0:00:27]}  Nxd6+ {[%clk 0:00:15]} 40. Kd2 {[%clk 0:00:27]}  Ne4+ {[%clk 0:00:15]} 41. Kc1 {[%clk 0:00:27]}  Rb8 {[%clk 0:00:14]} 42. Qf5 {[%clk 0:00:25]}  Nd6 {[%clk 0:00:13]} 43. Qxg6 {[%clk 0:00:24]}  Qe3+ {[%clk 0:00:13]} 44. Kc2 {[%clk 0:00:24]}  Qe2+ {[%clk 0:00:11]} 45. Kc1 {[%clk 0:00:22]}  Qb2+ {[%clk 0:00:10]} 46. Kd1 {[%clk 0:00:22]}  Qb1+ {[%clk 0:00:10]} 47. Qxb1 {[%clk 0:00:21]}  Rxb1+ {[%clk 0:00:11]} 48. Kd2 {[%clk 0:00:22]}  Rxh1 {[%clk 0:00:11]} 0-1


[Site "https://www.chess.com"]

[Event "Titled Tuesday Blitz May 30 Late 2023"]
[White "K2JW"]
[Black "Elaisaz"]
[WhiteElo "2361"]
[BlackElo "2178"]
[Result "1-0"]
[Round "03"]
[TimeControl "180+2"]
[Date "2023.05.31"]
[WhiteClock "0:00:13"]
[BlackClock "0:00:02"]

1. e4 {[%clk 0:03:00]}  d6 {[%clk 0:02:55]} 2. d4 {[%clk 0:03:00]}  g6 {[%clk 0:02:52]} 3. Nc3 {[%clk 0:03:01]}  Bg7 {[%clk 0:02:53]} 4. Be3 {[%clk 0:02:59]}  Nd7 {[%clk 0:02:52]} 5. Qd2 {[%clk 0:02:49]}  Ngf6 {[%clk 0:02:49]} 6. f3 {[%clk 0:02:46]}  c6 {[%clk 0:02:46]} 7. h4 {[%clk 0:02:39]}  b5 {[%clk 0:02:43]} 8. Bd3 {[%clk 0:01:57]}  h5 {[%clk 0:02:43]} 9. Nh3 {[%clk 0:01:46]}  Nb6 {[%clk 0:02:38]} 10. Ng5 {[%clk 0:01:39]}  Nc4 {[%clk 0:02:33]} 11. Bxc4 {[%clk 0:01:40]}  bxc4 {[%clk 0:02:33]} 12. O-O {[%clk 0:01:38]}  O-O {[%clk 0:02:13]} 13. Qe2 {[%clk 0:01:30]}  Rb8 {[%clk 0:02:07]} 14. Rab1 {[%clk 0:01:05]}  Nd7 {[%clk 0:01:18]} 15. Qxc4 {[%clk 0:00:52]}  Qa5 {[%clk 0:01:17]} 16. b4 {[%clk 0:00:43]}  Qc7 {[%clk 0:00:56]} 17. b5 {[%clk 0:00:35]}  c5 {[%clk 0:00:44]} 18. Nd5 {[%clk 0:00:34]}  Qd8 {[%clk 0:00:40]} 19. Nf4 {[%clk 0:00:34]}  Nb6 {[%clk 0:00:29]} 20. Qb3 {[%clk 0:00:26]}  cxd4 {[%clk 0:00:29]} 21. Bf2 {[%clk 0:00:16]}  Bd7 {[%clk 0:00:24]} 22. Nxg6 {[%clk 0:00:15]}  d5 {[%clk 0:00:08]} 23. Nxf8 {[%clk 0:00:15]}  Qxf8 {[%clk 0:00:06]} 24. exd5 {[%clk 0:00:13]}  Rd8 {[%clk 0:00:02]} 25. Rfd1 {[%clk 0:00:13]} 1-0


[Site "https://www.chess.com"]

[Event "Titled Tuesday Blitz May 30 Late 2023"]
[White "Florianovitz, Derlei Alex"]
[Black "Krzywda, Andrzej"]
[WhiteFideId "2114178"]
[BlackFideId "1114565"]
[WhiteElo "1953"]
[BlackElo "2155"]
[Result "1-0"]
[Round "03"]
[TimeControl "180+2"]
[Date "2023.05.31"]
[WhiteClock "0:00:01"]
[BlackClock "0:00:03"]

1. e4 {[%clk 0:02:58]}  e5 {[%clk 0:03:00]} 2. Nf3 {[%clk 0:02:57]}  Nf6 {[%clk 0:03:00]} 3. Nxe5 {[%clk 0:02:54]}  d6 {[%clk 0:03:01]} 4. Nd3 {[%clk 0:02:53]}  Nxe4 {[%clk 0:03:00]} 5. Nf4 {[%clk 0:02:51]}  Bf5 {[%clk 0:02:47]} 6. d4 {[%clk 0:02:50]}  Be7 {[%clk 0:02:31]} 7. Bd3 {[%clk 0:02:49]}  d5 {[%clk 0:02:23]} 8. O-O {[%clk 0:02:49]}  O-O {[%clk 0:02:21]} 9. c4 {[%clk 0:02:49]}  dxc4 {[%clk 0:02:19]} 10. Bxc4 {[%clk 0:02:48]}  Nc6 {[%clk 0:02:16]} 11. Be3 {[%clk 0:02:45]}  Bg5 {[%clk 0:02:05]} 12. Nd5 {[%clk 0:01:34]}  Be6 {[%clk 0:01:51]} 13. Bxg5 {[%clk 0:01:29]}  Nxg5 {[%clk 0:01:44]} 14. Ne3 {[%clk 0:01:28]}  Bxc4 {[%clk 0:01:41]} 15. Nxc4 {[%clk 0:01:27]}  Qxd4 {[%clk 0:01:42]} 16. Qxd4 {[%clk 0:01:27]}  Nxd4 {[%clk 0:01:43]} 17. Nc3 {[%clk 0:01:27]}  Rad8 {[%clk 0:01:37]} 18. h4 {[%clk 0:01:20]}  Nge6 {[%clk 0:01:35]} 19. Rac1 {[%clk 0:01:14]}  c5 {[%clk 0:01:33]} 20. Rfe1 {[%clk 0:01:12]}  h5 {[%clk 0:01:28]} 21. a4 {[%clk 0:01:05]}  Nb3 {[%clk 0:01:13]} 22. Rcd1 {[%clk 0:01:04]}  Rd4 {[%clk 0:01:09]} 23. Nd6 {[%clk 0:00:50]}  b6 {[%clk 0:00:45]} 24. Ndb5 {[%clk 0:00:41]}  Rxh4 {[%clk 0:00:40]} 25. Nxa7 {[%clk 0:00:37]}  Nbd4 {[%clk 0:00:34]} 26. Nab5 {[%clk 0:00:30]}  Rg4 {[%clk 0:00:23]} 27. Kh2 {[%clk 0:00:22]}  h4 {[%clk 0:00:20]} 28. f3 {[%clk 0:00:21]}  Rg6 {[%clk 0:00:14]} 29. Nxd4 {[%clk 0:00:14]}  cxd4 {[%clk 0:00:14]} 30. Nd5 {[%clk 0:00:14]}  Kh7 {[%clk 0:00:07]} 31. Nxb6 {[%clk 0:00:13]}  Rb8 {[%clk 0:00:07]} 32. Nc4 {[%clk 0:00:13]}  Rb4 {[%clk 0:00:07]} 33. Ne5 {[%clk 0:00:13]}  Rg5 {[%clk 0:00:04]} 34. Nxf7 {[%clk 0:00:12]}  Rf5 {[%clk 0:00:04]} 35. Rxe6 {[%clk 0:00:08]}  Rxf7 {[%clk 0:00:02]} 36. Re4 {[%clk 0:00:09]}  Rxb2 {[%clk 0:00:02]} 37. Rxh4+ {[%clk 0:00:07]}  Kg8 {[%clk 0:00:02]} 38. Rhxd4 {[%clk 0:00:08]}  Rxf3 {[%clk 0:00:01]} 39. R1d2 {[%clk 0:00:06]}  Rxd2 {[%clk 0:00:01]} 40. Rxd2 {[%clk 0:00:07]}  Ra3 {[%clk 0:00:02]} 41. Rd4 {[%clk 0:00:07]}  Kf7 {[%clk 0:00:03]} 42. Rb4 {[%clk 0:00:06]}  Ke6 {[%clk 0:00:03]} 43. g3 {[%clk 0:00:04]}  Kd5 {[%clk 0:00:03]} 44. Kh3 {[%clk 0:00:04]}  Kc5 {[%clk 0:00:03]} 45. Rg4 {[%clk 0:00:04]}  Ra2 {[%clk 0:00:02]} 46. Rxg7 {[%clk 0:00:04]}  Rxa4 {[%clk 0:00:02]} 47. Rf7 {[%clk 0:00:04]}  Kd6 {[%clk 0:00:03]} 48. g4 {[%clk 0:00:04]}  Ke6 {[%clk 0:00:04]} 49. Rf3 {[%clk 0:00:04]}  Ra1 {[%clk 0:00:04]} 50. Kh4 {[%clk 0:00:04]}  Ra5 {[%clk 0:00:03]} 51. g5 {[%clk 0:00:04]}  Ra1 {[%clk 0:00:03]} 52. Kh5 {[%clk 0:00:04]}  Ke7 {[%clk 0:00:02]} 53. Kh6 {[%clk 0:00:03]}  Rh1+ {[%clk 0:00:02]} 54. Kg7 {[%clk 0:00:04]}  Ke8 {[%clk 0:00:02]} 55. g6 {[%clk 0:00:04]}  Rg1 {[%clk 0:00:03]} 56. Rf4 {[%clk 0:00:04]}  Rh1 {[%clk 0:00:03]} 57. Re4+ {[%clk 0:00:04]}  Kd7 {[%clk 0:00:03]} 58. Kg8 {[%clk 0:00:04]}  Rg1 {[%clk 0:00:02]} 59. g7 {[%clk 0:00:04]}  Rf1 {[%clk 0:00:03]} 60. Rh4 {[%clk 0:00:03]}  Ke8 {[%clk 0:00:03]} 61. Kh7 {[%clk 0:00:01]} 1-0


[Site "https://www.chess.com"]

[Event "Titled Tuesday Blitz May 30 Late 2023"]
[White "Horokoskii"]
[Black "gao6969"]
[WhiteElo "2135"]
[BlackElo "2349"]
[Result "0-1"]
[Round "03"]
[TimeControl "180+2"]
[Date "2023.05.31"]
[WhiteClock "0:00:02"]
[BlackClock "0:00:47"]

1. d4 {[%clk 0:02:31]}  Nf6 {[%clk 0:02:58]} 2. c4 {[%clk 0:02:30]}  c5 {[%clk 0:02:56]} 3. d5 {[%clk 0:02:29]}  b5 {[%clk 0:02:56]} 4. cxb5 {[%clk 0:02:30]}  a6 {[%clk 0:02:57]} 5. bxa6 {[%clk 0:02:30]}  g6 {[%clk 0:02:55]} 6. Nc3 {[%clk 0:02:29]}  Bxa6 {[%clk 0:02:55]} 7. e4 {[%clk 0:02:27]}  Bxf1 {[%clk 0:02:56]} 8. Kxf1 {[%clk 0:02:27]}  d6 {[%clk 0:02:57]} 9. Nf3 {[%clk 0:02:27]}  Bg7 {[%clk 0:02:57]} 10. g3 {[%clk 0:02:27]}  O-O {[%clk 0:02:57]} 11. Kg2 {[%clk 0:02:27]}  Nbd7 {[%clk 0:02:57]} 12. a4 {[%clk 0:02:23]}  Ra6 {[%clk 0:02:56]} 13. Qe2 {[%clk 0:02:22]}  Qa8 {[%clk 0:02:57]} 14. Bd2 {[%clk 0:02:16]}  Rb8 {[%clk 0:02:56]} 15. Rhb1 {[%clk 0:02:08]}  e6 {[%clk 0:02:52]} 16. dxe6 {[%clk 0:02:00]}  fxe6 {[%clk 0:02:53]} 17. Nb5 {[%clk 0:01:48]}  Qxe4 {[%clk 0:02:37]} 18. Qxe4 {[%clk 0:01:45]}  Nxe4 {[%clk 0:02:38]} 19. Nc7 {[%clk 0:01:43]}  Rab6 {[%clk 0:02:25]} 20. Nxe6 {[%clk 0:01:40]}  Rxb2 {[%clk 0:02:25]} 21. Rxb2 {[%clk 0:01:37]}  Rxb2 {[%clk 0:02:26]} 22. Nxg7 {[%clk 0:01:35]}  Kxg7 {[%clk 0:02:20]} 23. Bf4 {[%clk 0:01:25]}  Rxf2+ {[%clk 0:02:17]} 24. Kg1 {[%clk 0:01:24]}  Rxf3 {[%clk 0:02:17]} 25. a5 {[%clk 0:01:23]}  g5 {[%clk 0:02:00]} 26. Bc1 {[%clk 0:01:11]}  Rf8 {[%clk 0:01:44]} 27. a6 {[%clk 0:00:50]}  Nb6 {[%clk 0:01:37]} 28. Rb1 {[%clk 0:00:45]}  Na8 {[%clk 0:01:33]} 29. Rb7+ {[%clk 0:00:37]}  Rf7 {[%clk 0:01:30]} 30. Bb2+ {[%clk 0:00:35]}  Kg6 {[%clk 0:01:29]} 31. Rb8 {[%clk 0:00:35]}  Ra7 {[%clk 0:01:30]} 32. Re8 {[%clk 0:00:31]}  d5 {[%clk 0:01:20]} 33. Re6+ {[%clk 0:00:28]}  Kf5 {[%clk 0:01:19]} 34. Rc6 {[%clk 0:00:26]}  Nc7 {[%clk 0:01:15]} 35. Kg2 {[%clk 0:00:06]}  Nxa6 {[%clk 0:00:53]} 36. Kf3 {[%clk 0:00:05]}  g4+ {[%clk 0:00:52]} 37. Ke3 {[%clk 0:00:04]}  Nb4 {[%clk 0:00:52]} 38. Rh6 {[%clk 0:00:03]}  d4+ {[%clk 0:00:50]} 39. Ke2 {[%clk 0:00:02]}  Ra2 {[%clk 0:00:47]} 40. Rh5+ {[%clk 0:00:02]}  Ke6 {[%clk 0:00:47]} 0-1


[Site "https://www.chess.com"]

[Event "Titled Tuesday Blitz May 30 Late 2023"]
[White "Winkels, Marcel"]
[Black "rikchessmx"]
[WhiteFideId "1003887"]
[WhiteElo "1900"]
[BlackElo "2340"]
[Result "1-0"]
[Round "03"]
[TimeControl "180+2"]
[Date "2023.05.31"]
[WhiteClock "0:01:31"]
[BlackClock "0:02:08"]

1. d4 {[%clk 0:03:00]}  Nf6 {[%clk 0:02:57]} 2. Nc3 {[%clk 0:03:00]}  e6 {[%clk 0:02:57]} 3. e4 {[%clk 0:02:58]}  c5 {[%clk 0:02:54]} 4. Nf3 {[%clk 0:02:56]}  cxd4 {[%clk 0:02:54]} 5. Nxd4 {[%clk 0:02:56]}  a6 {[%clk 0:02:53]} 6. g3 {[%clk 0:02:51]}  Qc7 {[%clk 0:02:51]} 7. Bg2 {[%clk 0:02:51]}  Bb4 {[%clk 0:02:50]} 8. O-O {[%clk 0:02:48]}  Nc6 {[%clk 0:02:43]} 9. Be3 {[%clk 0:02:40]}  Ne5 {[%clk 0:02:42]} 10. h3 {[%clk 0:02:35]}  h5 {[%clk 0:02:21]} 11. Na4 {[%clk 0:02:17]}  b5 {[%clk 0:02:15]} 12. Nc3 {[%clk 0:02:12]}  Nc4 {[%clk 0:02:14]} 13. e5 {[%clk 0:02:03]}  Nd5 {[%clk 0:02:13]} 14. Nxd5 {[%clk 0:01:56]}  exd5 {[%clk 0:02:12]} 15. Bxd5 {[%clk 0:01:56]}  Nxe3 {[%clk 0:02:12]} 16. fxe3 {[%clk 0:01:50]}  Bb7 {[%clk 0:02:11]} 17. Bxf7+ {[%clk 0:01:37]}  Kd8 {[%clk 0:02:11]} 18. Ne6+ {[%clk 0:01:32]}  Ke7 {[%clk 0:02:08]} 19. Nxc7 {[%clk 0:01:31]} 1-0


[Site "https://www.chess.com"]

[Event "Titled Tuesday Blitz May 30 Late 2023"]
[White "deloewre"]
[Black "Rose, Felix"]
[BlackFideId "5105722"]
[WhiteElo "2098"]
[BlackElo "2039"]
[Result "0-1"]
[Round "03"]
[TimeControl "180+2"]
[Date "2023.05.31"]
[WhiteClock "0:00:01"]
[BlackClock "0:00:23"]

1. d4 {[%clk 0:03:00]}  Nf6 {[%clk 0:02:59]} 2. Bf4 {[%clk 0:02:59]}  d6 {[%clk 0:03:00]} 3. Nf3 {[%clk 0:02:56]}  Nbd7 {[%clk 0:02:59]} 4. e3 {[%clk 0:02:49]}  c6 {[%clk 0:03:00]} 5. Nc3 {[%clk 0:02:43]}  Qa5 {[%clk 0:03:00]} 6. Bc4 {[%clk 0:02:25]}  Ne4 {[%clk 0:02:44]} 7. O-O {[%clk 0:02:19]}  Nxc3 {[%clk 0:02:44]} 8. bxc3 {[%clk 0:02:17]}  Qxc3 {[%clk 0:02:41]} 9. Bb3 {[%clk 0:02:10]}  e6 {[%clk 0:02:30]} 10. e4 {[%clk 0:02:04]}  Be7 {[%clk 0:02:24]} 11. Bd2 {[%clk 0:02:00]}  Qb2 {[%clk 0:02:20]} 12. a3 {[%clk 0:01:56]}  d5 {[%clk 0:01:39]} 13. Ra2 {[%clk 0:01:54]}  Qxa3 {[%clk 0:01:38]} 14. Rxa3 {[%clk 0:01:53]}  Bxa3 {[%clk 0:01:39]} 15. exd5 {[%clk 0:01:51]}  cxd5 {[%clk 0:01:37]} 16. c4 {[%clk 0:01:46]}  dxc4 {[%clk 0:01:35]} 17. Bxc4 {[%clk 0:01:44]}  O-O {[%clk 0:01:34]} 18. Bd3 {[%clk 0:01:32]}  Rd8 {[%clk 0:01:24]} 19. Qe2 {[%clk 0:01:27]}  Bf8 {[%clk 0:01:18]} 20. Ng5 {[%clk 0:01:22]}  Nf6 {[%clk 0:01:10]} 21. Re1 {[%clk 0:01:13]}  Rxd4 {[%clk 0:01:06]} 22. Bc3 {[%clk 0:01:08]}  Rh4 {[%clk 0:01:00]} 23. Bxf6 {[%clk 0:01:03]}  gxf6 {[%clk 0:01:01]} 24. Ne4 {[%clk 0:00:58]}  Bg7 {[%clk 0:01:02]} 25. Qf3 {[%clk 0:00:54]}  f5 {[%clk 0:01:00]} 26. Nd6 {[%clk 0:00:48]}  Rd4 {[%clk 0:00:52]} 27. Nb5 {[%clk 0:00:39]}  Rd8 {[%clk 0:00:46]} 28. Bb1 {[%clk 0:00:32]}  a5 {[%clk 0:00:46]} 29. g4 {[%clk 0:00:30]}  fxg4 {[%clk 0:00:38]} 30. Qxg4 {[%clk 0:00:29]}  a4 {[%clk 0:00:35]} 31. Qe4 {[%clk 0:00:22]}  a3 {[%clk 0:00:34]} 32. Qxh7+ {[%clk 0:00:19]}  Kf8 {[%clk 0:00:34]} 33. Nc7 {[%clk 0:00:17]}  Ra5 {[%clk 0:00:31]} 34. Nxe6+ {[%clk 0:00:11]}  Bxe6 {[%clk 0:00:29]} 35. Rxe6 {[%clk 0:00:06]}  Rg5+ {[%clk 0:00:25]} 36. Kf1 {[%clk 0:00:03]}  fxe6 {[%clk 0:00:25]} 37. Qh4 {[%clk 0:00:01]}  Rd1+ {[%clk 0:00:23]} 0-1


[Site "https://www.chess.com"]

[Event "Titled Tuesday Blitz May 30 Late 2023"]
[White "Kaganskiy, Gleb"]
[Black "Phillips, Rene"]
[WhiteFideId "4132025"]
[BlackFideId "2056275"]
[WhiteElo "2165"]
[BlackElo "2076"]
[Result "1-0"]
[Round "03"]
[TimeControl "180+2"]
[Date "2023.05.31"]
[WhiteClock "0:00:16"]
[BlackClock "0:00:02"]

1. e4 {[%clk 0:03:00]}  Nc6 {[%clk 0:02:58]} 2. Nf3 {[%clk 0:02:59]}  d5 {[%clk 0:02:56]} 3. exd5 {[%clk 0:02:58]}  Qxd5 {[%clk 0:02:55]} 4. d4 {[%clk 0:02:47]}  Bg4 {[%clk 0:02:53]} 5. Be2 {[%clk 0:02:43]}  O-O-O {[%clk 0:02:52]} 6. Be3 {[%clk 0:02:36]}  Nf6 {[%clk 0:02:45]} 7. h3 {[%clk 0:02:30]}  Bh5 {[%clk 0:02:36]} 8. O-O {[%clk 0:02:26]}  e5 {[%clk 0:02:32]} 9. c4 {[%clk 0:02:23]}  Qa5 {[%clk 0:02:27]} 10. d5 {[%clk 0:02:22]}  e4 {[%clk 0:02:19]} 11. Ng5 {[%clk 0:02:19]}  Bg6 {[%clk 0:02:14]} 12. Qb3 {[%clk 0:01:57]}  Ne5 {[%clk 0:02:02]} 13. h4 {[%clk 0:01:27]}  h6 {[%clk 0:01:58]} 14. Nh3 {[%clk 0:01:25]}  Qb4 {[%clk 0:01:49]} 15. Nf4 {[%clk 0:01:21]}  Bf5 {[%clk 0:01:40]} 16. Nc3 {[%clk 0:01:15]}  Qxb3 {[%clk 0:01:38]} 17. axb3 {[%clk 0:01:13]}  a6 {[%clk 0:01:38]} 18. Bd4 {[%clk 0:01:07]}  Ng6 {[%clk 0:01:23]} 19. Nxg6 {[%clk 0:01:05]}  Bxg6 {[%clk 0:01:24]} 20. Bxf6 {[%clk 0:01:03]}  gxf6 {[%clk 0:01:23]} 21. Nd1 {[%clk 0:01:02]}  Bc5 {[%clk 0:01:11]} 22. Ne3 {[%clk 0:01:00]}  f5 {[%clk 0:01:05]} 23. h5 {[%clk 0:00:56]}  Bh7 {[%clk 0:01:04]} 24. g3 {[%clk 0:00:55]}  Rhg8 {[%clk 0:01:03]} 25. Kh2 {[%clk 0:00:53]}  Bd4 {[%clk 0:00:59]} 26. Rab1 {[%clk 0:00:50]}  Be5 {[%clk 0:00:49]} 27. Ng2 {[%clk 0:00:48]}  Bh8 {[%clk 0:00:39]} 28. Nf4 {[%clk 0:00:47]}  Be5 {[%clk 0:00:36]} 29. Rg1 {[%clk 0:00:44]}  Rg5 {[%clk 0:00:35]} 30. b4 {[%clk 0:00:39]}  Rdg8 {[%clk 0:00:32]} 31. b3 {[%clk 0:00:37]}  Bd4 {[%clk 0:00:31]} 32. Rg2 {[%clk 0:00:35]}  Bc3 {[%clk 0:00:28]} 33. b5 {[%clk 0:00:30]}  axb5 {[%clk 0:00:27]} 34. c5 {[%clk 0:00:28]}  c6 {[%clk 0:00:18]} 35. d6 {[%clk 0:00:27]}  Bd4 {[%clk 0:00:17]} 36. b4 {[%clk 0:00:25]}  Be5 {[%clk 0:00:15]} 37. Rd1 {[%clk 0:00:24]}  Bxf4 {[%clk 0:00:14]} 38. d7+ {[%clk 0:00:24]}  Kd8 {[%clk 0:00:14]} 39. Rgg1 {[%clk 0:00:23]}  Bc7 {[%clk 0:00:14]} 40. Ra1 {[%clk 0:00:22]}  Ke7 {[%clk 0:00:12]} 41. Rgd1 {[%clk 0:00:22]}  Rd8 {[%clk 0:00:11]} 42. Ra7 {[%clk 0:00:21]}  f4 {[%clk 0:00:10]} 43. Rxb7 {[%clk 0:00:19]}  fxg3+ {[%clk 0:00:10]} 44. fxg3 {[%clk 0:00:19]}  Bxg3+ {[%clk 0:00:10]} 45. Kh3 {[%clk 0:00:19]}  Bf2 {[%clk 0:00:08]} 46. Bg4 {[%clk 0:00:19]}  Rd5 {[%clk 0:00:08]} 47. Rxd5 {[%clk 0:00:18]}  cxd5 {[%clk 0:00:07]} 48. c6 {[%clk 0:00:18]}  f5 {[%clk 0:00:02]} 49. c7 {[%clk 0:00:18]}  Rxd7 {[%clk 0:00:01]} 50. c8=Q {[%clk 0:00:17]}  fxg4+ {[%clk 0:00:02]} 51. Kxg4 {[%clk 0:00:16]} 1-0


[Site "https://www.chess.com"]

[Event "Titled Tuesday Blitz May 30 Late 2023"]
[White "Figorito, Nick"]
[Black "campochess"]
[WhiteFideId "30923689"]
[WhiteElo "2331"]
[BlackElo "2074"]
[Result "1-0"]
[Round "03"]
[TimeControl "180+2"]
[Date "2023.05.31"]
[WhiteClock "0:01:10"]
[BlackClock "0:01:28"]

1. Nf3 {[%clk 0:03:00]}  c5 {[%clk 0:02:42]} 2. g3 {[%clk 0:03:00]}  Nc6 {[%clk 0:02:42]} 3. d4 {[%clk 0:03:00]}  cxd4 {[%clk 0:02:41]} 4. Nxd4 {[%clk 0:03:00]}  Qb6 {[%clk 0:02:40]} 5. Nb3 {[%clk 0:02:53]}  Nf6 {[%clk 0:02:39]} 6. Bg2 {[%clk 0:02:53]}  d5 {[%clk 0:02:36]} 7. O-O {[%clk 0:02:53]}  e6 {[%clk 0:02:36]} 8. c4 {[%clk 0:02:52]}  dxc4 {[%clk 0:02:34]} 9. N3d2 {[%clk 0:02:52]}  Be7 {[%clk 0:02:30]} 10. Nxc4 {[%clk 0:02:51]}  Qc7 {[%clk 0:02:30]} 11. Bf4 {[%clk 0:02:50]}  e5 {[%clk 0:02:26]} 12. Bg5 {[%clk 0:02:30]}  Be6 {[%clk 0:02:23]} 13. Ne3 {[%clk 0:02:27]}  Rd8 {[%clk 0:02:21]} 14. Qc1 {[%clk 0:02:23]}  O-O {[%clk 0:02:17]} 15. Nc3 {[%clk 0:02:23]}  a6 {[%clk 0:02:15]} 16. Bxf6 {[%clk 0:02:18]}  Bxf6 {[%clk 0:02:14]} 17. Ncd5 {[%clk 0:02:19]}  Bxd5 {[%clk 0:02:06]} 18. Nxd5 {[%clk 0:02:18]}  Rxd5 {[%clk 0:02:06]} 19. Bxd5 {[%clk 0:02:17]}  Qb6 {[%clk 0:02:06]} 20. Bxc6 {[%clk 0:02:14]}  bxc6 {[%clk 0:02:04]} 21. e4 {[%clk 0:02:14]}  h5 {[%clk 0:01:59]} 22. h4 {[%clk 0:02:12]}  Rd8 {[%clk 0:01:54]} 23. Qc2 {[%clk 0:01:59]}  Rd4 {[%clk 0:01:51]} 24. Rfd1 {[%clk 0:01:44]}  c5 {[%clk 0:01:48]} 25. Rac1 {[%clk 0:01:41]}  Be7 {[%clk 0:01:44]} 26. b3 {[%clk 0:01:37]}  Qg6 {[%clk 0:01:43]} 27. Rxd4 {[%clk 0:01:32]}  exd4 {[%clk 0:01:42]} 28. Qd3 {[%clk 0:01:28]}  Bxh4 {[%clk 0:01:35]} 29. Rxc5 {[%clk 0:01:20]}  Bf6 {[%clk 0:01:35]} 30. Qxa6 {[%clk 0:01:13]}  Qxe4 {[%clk 0:01:31]} 31. Qc8+ {[%clk 0:01:13]}  Kh7 {[%clk 0:01:30]} 32. Qf5+ {[%clk 0:01:09]}  Qxf5 {[%clk 0:01:30]} 33. Rxf5 {[%clk 0:01:10]}  Kg6 {[%clk 0:01:30]} 34. Rd5 {[%clk 0:01:10]}  h4 {[%clk 0:01:28]} 35. gxh4 {[%clk 0:01:10]} 1-0


[Site "https://www.chess.com"]

[Event "Titled Tuesday Blitz May 30 Late 2023"]
[White "Campos, Maria Jose"]
[Black "dorpato"]
[WhiteFideId "146803"]
[WhiteElo "2170"]
[BlackElo "2054"]
[Result "1-0"]
[Round "03"]
[TimeControl "180+2"]
[Date "2023.05.31"]
[WhiteClock "0:02:14"]
[BlackClock "0:00:01"]

1. c4 {[%clk 0:03:00]}  Nf6 {[%clk 0:02:57]} 2. g3 {[%clk 0:03:01]}  g6 {[%clk 0:02:57]} 3. Bg2 {[%clk 0:03:01]}  Bg7 {[%clk 0:02:57]} 4. Nc3 {[%clk 0:03:01]}  c6 {[%clk 0:02:58]} 5. d3 {[%clk 0:03:01]}  d5 {[%clk 0:02:58]} 6. Nf3 {[%clk 0:03:00]}  dxc4 {[%clk 0:02:56]} 7. dxc4 {[%clk 0:03:00]}  Qxd1+ {[%clk 0:02:56]} 8. Nxd1 {[%clk 0:03:00]}  Be6 {[%clk 0:02:56]} 9. Ne3 {[%clk 0:03:00]}  Nbd7 {[%clk 0:02:56]} 10. Nd4 {[%clk 0:03:00]}  Nc5 {[%clk 0:02:48]} 11. O-O {[%clk 0:02:59]}  Bd7 {[%clk 0:02:39]} 12. Rd1 {[%clk 0:02:58]}  O-O {[%clk 0:02:36]} 13. b3 {[%clk 0:02:57]}  Rfd8 {[%clk 0:02:26]} 14. Ba3 {[%clk 0:02:57]}  b6 {[%clk 0:01:48]} 15. Bxc6 {[%clk 0:02:51]}  Bxc6 {[%clk 0:01:40]} 16. Nxc6 {[%clk 0:02:51]}  Re8 {[%clk 0:01:37]} 17. Rac1 {[%clk 0:02:43]}  Nfe4 {[%clk 0:01:25]} 18. f3 {[%clk 0:02:37]}  Nc3 {[%clk 0:01:15]} 19. Rd2 {[%clk 0:02:37]}  Ne6 {[%clk 0:00:16]} 20. Bb4 {[%clk 0:02:31]}  Bh6 {[%clk 0:00:10]} 21. Rxc3 {[%clk 0:02:28]}  a5 {[%clk 0:00:08]} 22. Nxe7+ {[%clk 0:02:19]}  Kg7 {[%clk 0:00:07]} 23. Ba3 {[%clk 0:02:19]}  Nc5 {[%clk 0:00:07]} 24. Bxc5 {[%clk 0:02:16]}  bxc5 {[%clk 0:00:06]} 25. N7d5 {[%clk 0:02:16]}  Rad8 {[%clk 0:00:06]} 26. Kf2 {[%clk 0:02:16]}  f5 {[%clk 0:00:03]} 27. f4 {[%clk 0:02:16]}  g5 {[%clk 0:00:03]} 28. Rcd3 {[%clk 0:02:14]}  gxf4 {[%clk 0:00:02]} 29. Nxf4 {[%clk 0:02:14]}  Bxf4 {[%clk 0:00:01]} 30. gxf4 {[%clk 0:02:14]}  Rxd3 {[%clk 0:00:01]} 31. Rxd3 {[%clk 0:02:14]}  Kf6 {[%clk 0:00:01]} 32. Rd6+ {[%clk 0:02:14]} 1-0


[Site "https://www.chess.com"]